[Event "December 12 Late 2023"]
[Site "https://www.chess.com"]
[Date "2023.12.12"]
[Round "3"]
[White "Zhigalko, Sergei"]
[Black "Dyachuk, Artem"]
[Result "0-1"]
[Board "19"]
[TimeControl "180+1"]
[WhiteFideId "13502956"]
[BlackFideId "34107924"]
[WhiteElo "2974"]
[BlackElo "2703"]
[WhiteTeam "BLR"]
[BlackTeam "UKR"]
[WhiteClock "0:00:00"]
[BlackClock "0:01:02"]

1. e4 {[%clk 0:03:00]}  e5 {[%clk 0:02:59]} 2. Nf3 {[%clk 0:03:01]}  Nc6 {[%clk 0:03:00]} 3. Bb5 {[%clk 0:03:00]}  a6 {[%clk 0:03:01]} 4. Ba4 {[%clk 0:03:00]}  Nf6 {[%clk 0:03:01]} 5. O-O {[%clk 0:03:01]}  Bc5 {[%clk 0:03:01]} 6. d3 {[%clk 0:02:45]}  h6 {[%clk 0:02:58]} 7. Bxc6 {[%clk 0:02:43]}  dxc6 {[%clk 0:02:57]} 8. Nxe5 {[%clk 0:02:43]}  O-O {[%clk 0:02:58]} 9. Be3 {[%clk 0:02:33]}  Bd6 {[%clk 0:02:50]} 10. Nf3 {[%clk 0:02:25]}  Re8 {[%clk 0:02:49]} 11. Nbd2 {[%clk 0:02:18]}  Bg4 {[%clk 0:02:43]} 12. h3 {[%clk 0:02:17]}  Bh5 {[%clk 0:02:43]} 13. Re1 {[%clk 0:02:11]}  Qd7 {[%clk 0:02:38]} 14. a3 {[%clk 0:02:01]}  Nh7 {[%clk 0:02:33]} 15. Qb1 {[%clk 0:01:59]}  Nf8 {[%clk 0:02:22]} 16. Qa2 {[%clk 0:01:57]}  Ne6 {[%clk 0:02:16]} 17. e5 {[%clk 0:01:33]}  Be7 {[%clk 0:02:13]} 18. Qc4 {[%clk 0:01:31]}  Rad8 {[%clk 0:01:53]} 19. Qe4 {[%clk 0:01:18]}  g5 {[%clk 0:01:47]} 20. Nf1 {[%clk 0:01:10]}  Bg6 {[%clk 0:01:47]} 21. Qc4 {[%clk 0:01:07]}  b5 {[%clk 0:01:47]} 22. Qc3 {[%clk 0:01:07]}  c5 {[%clk 0:01:47]} 23. Ng3 {[%clk 0:01:02]}  Qd5 {[%clk 0:01:46]} 24. Rad1 {[%clk 0:00:52]}  Bf8 {[%clk 0:01:45]} 25. b3 {[%clk 0:00:17]}  Bg7 {[%clk 0:01:45]} 26. Bc1 {[%clk 0:00:17]}  Rd7 {[%clk 0:01:29]} 27. Ne4 {[%clk 0:00:17]}  Bxe4 {[%clk 0:01:26]} 28. Rxe4 {[%clk 0:00:16]}  Qxe4 {[%clk 0:01:22]} 29. dxe4 {[%clk 0:00:17]}  Rxd1+ {[%clk 0:01:23]} 30. Kh2 {[%clk 0:00:17]}  Rxc1 {[%clk 0:01:23]} 31. Qd2 {[%clk 0:00:17]}  Rb1 {[%clk 0:01:20]} 32. g3 {[%clk 0:00:16]}  Rd8 {[%clk 0:01:20]} 33. Qa5 {[%clk 0:00:16]}  Rb2 {[%clk 0:01:12]} 34. Ne1 {[%clk 0:00:07]}  Rd1 {[%clk 0:01:10]} 35. Kg2 {[%clk 0:00:08]}  Bxe5 {[%clk 0:01:07]} 36. Nd3 {[%clk 0:00:08]}  Rxd3 {[%clk 0:01:01]} 37. cxd3 {[%clk 0:00:09]}  Bd4 {[%clk 0:01:02]} 38. Qxa6 {[%clk 0:00:08]}  Rxf2+ {[%clk 0:01:02]} 39. Kh1 {[%clk 0:00:09]}  Rf1+ {[%clk 0:01:02]} 40. Kg2 {[%clk 0:00:09]}  Rf2+ {[%clk 0:01:02]} 41. Kh1 {[%clk 0:00:09]}  g4 {[%clk 0:01:03]} 42. hxg4 {[%clk 0:00:00]}  Ng5 {[%clk 0:01:02]} 0-1

[Event "December 12 Late 2023"]
[Site "https://www.chess.com"]
[Date "2023.12.12"]
[Round "3"]
[White "Martinez Ramirez, Lennis"]
[Black "Khismatullin, Denis"]
[Result "1-0"]
[Board "20"]
[TimeControl "180+1"]
[WhiteFideId "3509079"]
[BlackFideId "4142578"]
[WhiteElo "2703"]
[BlackElo "2964"]
[WhiteTeam "CUB"]
[BlackTeam "RUS"]
[WhiteClock "0:00:09"]
[BlackClock "0:00:00"]

1. Nf3 {[%clk 0:02:57]}  Nf6 {[%clk 0:02:59]} 2. g3 {[%clk 0:02:57]}  b5 {[%clk 0:02:58]} 3. Bg2 {[%clk 0:02:57]}  Bb7 {[%clk 0:02:58]} 4. O-O {[%clk 0:02:58]}  c5 {[%clk 0:02:57]} 5. a4 {[%clk 0:02:57]}  b4 {[%clk 0:02:56]} 6. c3 {[%clk 0:02:57]}  e6 {[%clk 0:02:53]} 7. cxb4 {[%clk 0:02:56]}  cxb4 {[%clk 0:02:53]} 8. d3 {[%clk 0:02:53]}  Be7 {[%clk 0:02:51]} 9. Nbd2 {[%clk 0:02:45]}  O-O {[%clk 0:02:48]} 10. Nb3 {[%clk 0:02:45]}  a5 {[%clk 0:02:44]} 11. Be3 {[%clk 0:02:44]}  Bd5 {[%clk 0:02:37]} 12. Rc1 {[%clk 0:02:38]}  Nc6 {[%clk 0:02:36]} 13. Nfd2 {[%clk 0:02:37]}  Bxg2 {[%clk 0:02:34]} 14. Kxg2 {[%clk 0:02:38]}  Nd5 {[%clk 0:02:32]} 15. Bc5 {[%clk 0:02:38]}  d6 {[%clk 0:02:29]} 16. Bd4 {[%clk 0:02:15]}  Qd7 {[%clk 0:02:28]} 17. e4 {[%clk 0:02:13]}  Nf6 {[%clk 0:02:11]} 18. Be3 {[%clk 0:02:08]}  d5 {[%clk 0:02:06]} 19. Bc5 {[%clk 0:02:06]}  Rfc8 {[%clk 0:02:00]} 20. Bxe7 {[%clk 0:02:06]}  Qxe7 {[%clk 0:01:58]} 21. Qe2 {[%clk 0:01:59]}  h6 {[%clk 0:01:52]} 22. Qe3 {[%clk 0:01:59]}  dxe4 {[%clk 0:01:46]} 23. dxe4 {[%clk 0:01:58]}  Ne5 {[%clk 0:01:44]} 24. h3 {[%clk 0:01:35]}  Rd8 {[%clk 0:01:33]} 25. Qc5 {[%clk 0:01:32]}  Qxc5 {[%clk 0:01:28]} 26. Rxc5 {[%clk 0:01:33]}  Nd3 {[%clk 0:01:28]} 27. Rc2 {[%clk 0:01:13]}  g5 {[%clk 0:01:22]} 28. Rb1 {[%clk 0:01:11]}  Kg7 {[%clk 0:01:19]} 29. Kf3 {[%clk 0:01:11]}  Ne5+ {[%clk 0:01:18]} 30. Ke2 {[%clk 0:01:11]}  Nfd7 {[%clk 0:00:58]} 31. Nc4 {[%clk 0:01:07]}  Nxc4 {[%clk 0:00:56]} 32. Rxc4 {[%clk 0:01:08]}  Nb6 {[%clk 0:00:55]} 33. Rc5 {[%clk 0:01:08]}  Nxa4 {[%clk 0:00:54]} 34. Rxa5 {[%clk 0:01:08]}  Rxa5 {[%clk 0:00:54]} 35. Nxa5 {[%clk 0:01:08]}  Nc5 {[%clk 0:00:53]} 36. Nc6 {[%clk 0:01:02]}  Rd6 {[%clk 0:00:52]} 37. Nxb4 {[%clk 0:01:02]}  Nxe4 {[%clk 0:00:52]} 38. Nd3 {[%clk 0:01:00]}  f5 {[%clk 0:00:52]} 39. Rc1 {[%clk 0:00:57]}  Kf6 {[%clk 0:00:50]} 40. b4 {[%clk 0:00:57]}  Rd5 {[%clk 0:00:46]} 41. Rc6 {[%clk 0:00:53]}  h5 {[%clk 0:00:44]} 42. h4 {[%clk 0:00:47]}  gxh4 {[%clk 0:00:41]} 43. gxh4 {[%clk 0:00:48]}  Rd4 {[%clk 0:00:31]} 44. b5 {[%clk 0:00:47]}  Nd6 {[%clk 0:00:24]} 45. b6 {[%clk 0:00:47]}  Ke7 {[%clk 0:00:22]} 46. Rc7+ {[%clk 0:00:30]}  Kf6 {[%clk 0:00:22]} 47. Nc5 {[%clk 0:00:31]}  Rxh4 {[%clk 0:00:20]} 48. b7 {[%clk 0:00:30]}  Nxb7 {[%clk 0:00:19]} 49. Nd7+ {[%clk 0:00:28]}  Kg5 {[%clk 0:00:18]} 50. Rxb7 {[%clk 0:00:29]}  Re4+ {[%clk 0:00:17]} 51. Kf3 {[%clk 0:00:27]}  Rc4 {[%clk 0:00:16]} 52. Ne5 {[%clk 0:00:26]}  Rc3+ {[%clk 0:00:16]} 53. Kg2 {[%clk 0:00:26]}  Kf4 {[%clk 0:00:13]} 54. Nd7 {[%clk 0:00:19]}  h4 {[%clk 0:00:11]} 55. Rb4+ {[%clk 0:00:19]}  Kg5 {[%clk 0:00:10]} 56. Ne5 {[%clk 0:00:20]}  h3+ {[%clk 0:00:10]} 57. Kh2 {[%clk 0:00:20]}  f4 {[%clk 0:00:09]} 58. Rb5 {[%clk 0:00:15]}  Kf5 {[%clk 0:00:09]} 59. Nf3+ {[%clk 0:00:12]}  Kf6 {[%clk 0:00:07]} 60. Ng5 {[%clk 0:00:11]}  Rc2 {[%clk 0:00:06]} 61. Nxh3 {[%clk 0:00:10]}  e5 {[%clk 0:00:05]} 62. Rb8 {[%clk 0:00:08]}  Kf5 {[%clk 0:00:06]} 63. Kg2 {[%clk 0:00:08]}  Rc3 {[%clk 0:00:03]} 64. Rf8+ {[%clk 0:00:09]}  Ke4 {[%clk 0:00:03]} 65. Ng5+ {[%clk 0:00:09]}  Kd5 {[%clk 0:00:00]} 66. Rd8+ {[%clk 0:00:09]} 1-0

[Event "December 12 Late 2023"]
[Site "https://www.chess.com"]
[Date "2023.12.12"]
[Round "3"]
[White "Bok, Benjamin"]
[Black "Aldokhin, Ivan"]
[Result "0-1"]
[Board "21"]
[TimeControl "180+1"]
[WhiteFideId "1017063"]
[BlackFideId "24115720"]
[WhiteElo "2945"]
[BlackElo "2696"]
[WhiteTeam "NED"]
[BlackTeam "RUS"]
[WhiteClock "0:00:00"]
[BlackClock "0:00:06"]

1. d4 {[%clk 0:03:00]}  Nf6 {[%clk 0:02:57]} 2. c4 {[%clk 0:03:00]}  g6 {[%clk 0:02:57]} 3. g3 {[%clk 0:03:00]}  Bg7 {[%clk 0:02:58]} 4. Bg2 {[%clk 0:03:00]}  O-O {[%clk 0:02:58]} 5. Nc3 {[%clk 0:03:01]}  d6 {[%clk 0:02:59]} 6. Nf3 {[%clk 0:03:02]}  Nbd7 {[%clk 0:02:59]} 7. O-O {[%clk 0:03:02]}  e5 {[%clk 0:03:00]} 8. e4 {[%clk 0:03:02]}  exd4 {[%clk 0:03:01]} 9. Nxd4 {[%clk 0:03:03]}  Re8 {[%clk 0:03:01]} 10. h3 {[%clk 0:03:04]}  a6 {[%clk 0:03:02]} 11. Be3 {[%clk 0:03:01]}  Rb8 {[%clk 0:03:02]} 12. b3 {[%clk 0:02:40]}  Ne5 {[%clk 0:03:01]} 13. Rc1 {[%clk 0:02:28]}  c5 {[%clk 0:03:00]} 14. Nde2 {[%clk 0:02:29]}  b5 {[%clk 0:03:01]} 15. cxb5 {[%clk 0:02:27]}  axb5 {[%clk 0:03:01]} 16. f4 {[%clk 0:02:28]}  Ned7 {[%clk 0:02:59]} 17. Qxd6 {[%clk 0:02:15]}  b4 {[%clk 0:02:49]} 18. Na4 {[%clk 0:02:03]}  Nxe4 {[%clk 0:02:44]} 19. Qd3 {[%clk 0:01:57]}  Qe7 {[%clk 0:02:30]} 20. Qxe4 {[%clk 0:01:38]}  Qxe4 {[%clk 0:02:29]} 21. Bxe4 {[%clk 0:01:39]}  Rxe4 {[%clk 0:02:30]} 22. Kf2 {[%clk 0:01:37]}  Ba6 {[%clk 0:02:29]} 23. Rfe1 {[%clk 0:01:21]}  Rbe8 {[%clk 0:02:28]} 24. Ng1 {[%clk 0:01:19]}  c4 {[%clk 0:01:54]} 25. Nf3 {[%clk 0:00:38]}  c3 {[%clk 0:01:54]} 26. a3 {[%clk 0:00:15]}  bxa3 {[%clk 0:01:32]} 27. Nxc3 {[%clk 0:00:15]}  Rb4 {[%clk 0:01:32]} 28. Nd5 {[%clk 0:00:12]}  Rxb3 {[%clk 0:01:30]} 29. Nc7 {[%clk 0:00:12]}  Rexe3 {[%clk 0:00:41]} 30. Rxe3 {[%clk 0:00:12]}  Rxe3 {[%clk 0:00:40]} 31. Kxe3 {[%clk 0:00:12]}  Bb7 {[%clk 0:00:37]} 32. Rc2 {[%clk 0:00:11]}  Nb6 {[%clk 0:00:29]} 33. Nd4 {[%clk 0:00:09]}  h5 {[%clk 0:00:18]} 34. Ncb5 {[%clk 0:00:07]}  Nd5+ {[%clk 0:00:16]} 35. Kd2 {[%clk 0:00:07]}  Nb4 {[%clk 0:00:16]} 36. Rc7 {[%clk 0:00:03]}  a2 {[%clk 0:00:16]} 37. Nb3 {[%clk 0:00:04]}  Bd5 {[%clk 0:00:16]} 38. Rc8+ {[%clk 0:00:02]}  Kh7 {[%clk 0:00:16]} 39. Ra8 {[%clk 0:00:01]}  Bxb3 {[%clk 0:00:16]} 40. Nc3 {[%clk 0:00:02]}  Nd5 {[%clk 0:00:15]} 41. Nxa2 {[%clk 0:00:01]}  Bxa2 {[%clk 0:00:13]} 42. Rxa2 {[%clk 0:00:02]}  Nc3 {[%clk 0:00:13]} 43. Ra7 {[%clk 0:00:02]}  Ne4+ {[%clk 0:00:10]} 44. Ke3 {[%clk 0:00:02]}  Nxg3 {[%clk 0:00:06]} 45. Rxf7 {[%clk 0:00:03]}  Nf5+ {[%clk 0:00:07]} 46. Kf3 {[%clk 0:00:03]}  Kg8 {[%clk 0:00:07]} 47. Ra7 {[%clk 0:00:03]}  Kh7 {[%clk 0:00:07]} 48. Rb7 {[%clk 0:00:03]}  Kh6 {[%clk 0:00:07]} 49. Ra7 {[%clk 0:00:03]}  Nd6 {[%clk 0:00:06]} 50. Ra6 {[%clk 0:00:02]}  Nf5 {[%clk 0:00:06]} 51. Rb6 {[%clk 0:00:02]}  Nh4+ {[%clk 0:00:06]} 52. Ke4 {[%clk 0:00:02]}  Nf5 {[%clk 0:00:07]} 53. Ra6 {[%clk 0:00:02]}  Bf8 {[%clk 0:00:06]} 54. Ra8 {[%clk 0:00:01]}  Bg7 {[%clk 0:00:06]} 55. Ra6 {[%clk 0:00:00]}  h4 {[%clk 0:00:06]} 0-1

[Event "December 12 Late 2023"]
[Site "https://www.chess.com"]
[Date "2023.12.12"]
[Round "3"]
[White "Krallis, Christos"]
[Black "Rasulov, Vugar"]
[Result "0-1"]
[Board "25"]
[TimeControl "180+1"]
[WhiteFideId "4298896"]
[BlackFideId "13402390"]
[WhiteElo "2674"]
[BlackElo "2904"]
[WhiteTeam "GRE"]
[BlackTeam "AZE"]
[WhiteClock "0:00:06"]
[BlackClock "0:01:06"]

1. Nf3 {[%clk 0:02:56]}  Nf6 {[%clk 0:02:58]} 2. b3 {[%clk 0:02:56]}  b6 {[%clk 0:02:58]} 3. Bb2 {[%clk 0:02:57]}  Bb7 {[%clk 0:02:59]} 4. g3 {[%clk 0:02:57]}  g6 {[%clk 0:02:58]} 5. Bg2 {[%clk 0:02:57]}  Bg7 {[%clk 0:02:59]} 6. O-O {[%clk 0:02:57]}  O-O {[%clk 0:02:59]} 7. c4 {[%clk 0:02:57]}  c5 {[%clk 0:03:00]} 8. d4 {[%clk 0:02:56]}  cxd4 {[%clk 0:02:59]} 9. Nxd4 {[%clk 0:02:57]}  Bxg2 {[%clk 0:02:59]} 10. Kxg2 {[%clk 0:02:58]}  d5 {[%clk 0:02:57]} 11. Nb5 {[%clk 0:02:52]}  a6 {[%clk 0:02:55]} 12. N5a3 {[%clk 0:02:49]}  Nc6 {[%clk 0:02:46]} 13. cxd5 {[%clk 0:02:48]}  Qxd5+ {[%clk 0:02:47]} 14. Qxd5 {[%clk 0:02:41]}  Nxd5 {[%clk 0:02:47]} 15. Bxg7 {[%clk 0:02:41]}  Kxg7 {[%clk 0:02:48]} 16. Nd2 {[%clk 0:02:30]}  Rfd8 {[%clk 0:02:46]} 17. Nf3 {[%clk 0:02:27]}  b5 {[%clk 0:02:42]} 18. Nc2 {[%clk 0:02:20]}  Rac8 {[%clk 0:02:41]} 19. a4 {[%clk 0:02:14]}  b4 {[%clk 0:02:37]} 20. e3 {[%clk 0:02:06]}  e5 {[%clk 0:02:30]} 21. Rfd1 {[%clk 0:01:43]}  Na5 {[%clk 0:02:13]} 22. e4 {[%clk 0:01:27]}  Rxc2 {[%clk 0:01:53]} 23. exd5 {[%clk 0:01:25]}  f6 {[%clk 0:01:46]} 24. d6 {[%clk 0:01:16]}  Rc6 {[%clk 0:01:43]} 25. d7 {[%clk 0:01:13]}  Rc7 {[%clk 0:01:40]} 26. Rd6 {[%clk 0:01:13]}  Nxb3 {[%clk 0:01:31]} 27. Rb1 {[%clk 0:01:13]}  Nc5 {[%clk 0:01:30]} 28. Rxb4 {[%clk 0:01:12]}  Rdxd7 {[%clk 0:01:30]} 29. Rdb6 {[%clk 0:01:06]}  Nd3 {[%clk 0:01:26]} 30. Rb1 {[%clk 0:00:48]}  Rc2 {[%clk 0:01:26]} 31. Rf1 {[%clk 0:00:46]}  e4 {[%clk 0:01:16]} 32. Ne1 {[%clk 0:00:46]}  Nxe1+ {[%clk 0:01:13]} 33. Rxe1 {[%clk 0:00:47]}  Rdd2 {[%clk 0:01:14]} 34. Rf1 {[%clk 0:00:20]}  e3 {[%clk 0:01:14]} 35. Re6 {[%clk 0:00:20]}  Rxf2+ {[%clk 0:01:11]} 36. Rxf2 {[%clk 0:00:20]}  Rxf2+ {[%clk 0:01:12]} 37. Kg1 {[%clk 0:00:19]}  Ra2 {[%clk 0:01:12]} 38. Rxe3 {[%clk 0:00:13]}  Rxa4 {[%clk 0:01:12]} 39. Re7+ {[%clk 0:00:13]}  Kh6 {[%clk 0:01:12]} 40. Rf7 {[%clk 0:00:11]}  f5 {[%clk 0:01:12]} 41. h4 {[%clk 0:00:11]}  Ra2 {[%clk 0:01:11]} 42. Ra7 {[%clk 0:00:11]}  a5 {[%clk 0:01:11]} 43. Kh1 {[%clk 0:00:12]}  a4 {[%clk 0:01:08]} 44. Kg1 {[%clk 0:00:12]}  a3 {[%clk 0:01:08]} 45. Kf1 {[%clk 0:00:11]}  Kh5 {[%clk 0:01:08]} 46. Rxh7+ {[%clk 0:00:10]}  Kg4 {[%clk 0:01:09]} 47. Rg7 {[%clk 0:00:10]}  Kf3 {[%clk 0:01:09]} 48. Ke1 {[%clk 0:00:10]}  Rb2 {[%clk 0:01:07]} 49. Ra7 {[%clk 0:00:08]}  a2 {[%clk 0:01:08]} 50. Ra3+ {[%clk 0:00:09]}  Kg4 {[%clk 0:01:06]} 51. Ra4+ {[%clk 0:00:08]}  Kxg3 {[%clk 0:01:06]} 52. Ra3+ {[%clk 0:00:08]}  Kxh4 {[%clk 0:01:06]} 53. Ra4+ {[%clk 0:00:06]}  Kg5 {[%clk 0:01:06]} 0-1

[Event "December 12 Late 2023"]
[Site "https://www.chess.com"]
[Date "2023.12.12"]
[Round "3"]
[White "Piesik, Piotr"]
[Black "Ashraf, Artin"]
[Result "0-1"]
[Board "26"]
[TimeControl "180+1"]
[WhiteFideId "1136194"]
[BlackFideId "22514805"]
[WhiteElo "2674"]
[BlackElo "2903"]
[WhiteTeam "CZE"]
[BlackTeam "IRI"]
[WhiteClock "0:00:15"]
[BlackClock "0:00:27"]

1. Nf3 {[%clk 0:03:00]}  Nf6 {[%clk 0:02:45]} 2. g3 {[%clk 0:03:01]}  e6 {[%clk 0:02:45]} 3. Bg2 {[%clk 0:03:01]}  d5 {[%clk 0:02:45]} 4. O-O {[%clk 0:03:02]}  Be7 {[%clk 0:02:45]} 5. d3 {[%clk 0:03:02]}  O-O {[%clk 0:02:45]} 6. Nbd2 {[%clk 0:03:03]}  c5 {[%clk 0:02:45]} 7. e4 {[%clk 0:03:04]}  Nc6 {[%clk 0:02:46]} 8. Re1 {[%clk 0:03:04]}  Qc7 {[%clk 0:02:47]} 9. c3 {[%clk 0:03:01]}  b5 {[%clk 0:02:40]} 10. e5 {[%clk 0:03:01]}  Nd7 {[%clk 0:02:40]} 11. Qe2 {[%clk 0:03:02]}  b4 {[%clk 0:02:38]} 12. c4 {[%clk 0:03:01]}  Nb6 {[%clk 0:02:35]} 13. b3 {[%clk 0:03:01]}  a5 {[%clk 0:02:35]} 14. Bb2 {[%clk 0:03:01]}  a4 {[%clk 0:02:35]} 15. h4 {[%clk 0:03:01]}  Bb7 {[%clk 0:02:34]} 16. h5 {[%clk 0:03:00]}  Rfd8 {[%clk 0:02:34]} 17. h6 {[%clk 0:03:00]}  g6 {[%clk 0:02:34]} 18. Nf1 {[%clk 0:02:57]}  a3 {[%clk 0:02:31]} 19. Bc1 {[%clk 0:02:55]}  dxc4 {[%clk 0:02:31]} 20. dxc4 {[%clk 0:02:55]}  Nd4 {[%clk 0:02:32]} 21. Nxd4 {[%clk 0:02:55]}  Bxg2 {[%clk 0:02:32]} 22. Kxg2 {[%clk 0:02:46]}  Rxd4 {[%clk 0:02:32]} 23. Nh2 {[%clk 0:02:34]}  Rad8 {[%clk 0:02:23]} 24. Be3 {[%clk 0:02:32]}  Rd3 {[%clk 0:02:13]} 25. Ng4 {[%clk 0:02:29]}  Qc6+ {[%clk 0:02:08]} 26. Qf3 {[%clk 0:02:26]}  Qxf3+ {[%clk 0:02:05]} 27. Kxf3 {[%clk 0:02:27]}  Nd7 {[%clk 0:02:05]} 28. Ke2 {[%clk 0:02:18]}  Nb8 {[%clk 0:02:05]} 29. Rad1 {[%clk 0:02:16]}  Rxd1 {[%clk 0:02:05]} 30. Rxd1 {[%clk 0:02:16]}  Rxd1 {[%clk 0:02:05]} 31. Kxd1 {[%clk 0:02:17]}  Nc6 {[%clk 0:02:06]} 32. Kc2 {[%clk 0:02:13]}  g5 {[%clk 0:02:02]} 33. f4 {[%clk 0:02:03]}  gxf4 {[%clk 0:02:01]} 34. gxf4 {[%clk 0:02:04]}  Nb8 {[%clk 0:01:55]} 35. Kd3 {[%clk 0:02:02]}  Nd7 {[%clk 0:01:55]} 36. Nf2 {[%clk 0:01:57]}  Bf8 {[%clk 0:01:37]} 37. Ng4 {[%clk 0:01:55]}  Nb8 {[%clk 0:01:30]} 38. Ke4 {[%clk 0:01:53]}  Nc6 {[%clk 0:01:29]} 39. f5 {[%clk 0:01:51]}  Na5 {[%clk 0:01:29]} 40. Bc1 {[%clk 0:01:48]}  Nc6 {[%clk 0:01:27]} 41. Nf6+ {[%clk 0:01:35]}  Kh8 {[%clk 0:01:27]} 42. Nd7 {[%clk 0:01:35]}  exf5+ {[%clk 0:01:17]} 43. Kxf5 {[%clk 0:01:36]}  Nd4+ {[%clk 0:01:17]} 44. Kf6 {[%clk 0:01:27]}  Kg8 {[%clk 0:01:17]} 45. Nb6 {[%clk 0:01:00]}  Ne2 {[%clk 0:01:07]} 46. Be3 {[%clk 0:00:49]}  Nc3 {[%clk 0:01:07]} 47. Nd7 {[%clk 0:00:34]}  Nxa2 {[%clk 0:01:00]} 48. Nxf8 {[%clk 0:00:34]}  Nc3 {[%clk 0:00:59]} 49. e6 {[%clk 0:00:20]}  fxe6 {[%clk 0:00:56]} 50. Kxe6 {[%clk 0:00:21]}  a2 {[%clk 0:00:51]} 51. Nd7 {[%clk 0:00:18]}  a1=Q {[%clk 0:00:40]} 52. Nf6+ {[%clk 0:00:18]}  Kh8 {[%clk 0:00:41]} 53. Bxc5 {[%clk 0:00:18]}  Qa6+ {[%clk 0:00:34]} 54. Kf7 {[%clk 0:00:15]}  Qxf6+ {[%clk 0:00:27]} 0-1

[Event "December 12 Late 2023"]
[Site "https://www.chess.com"]
[Date "2023.12.12"]
[Round "3"]
[White "Melkumyan, Hrant"]
[Black "Goryachkina, Aleksandra"]
[Result "1-0"]
[Board "27"]
[TimeControl "180+1"]
[WhiteFideId "13302485"]
[BlackFideId "4147103"]
[WhiteElo "2900"]
[BlackElo "2667"]
[WhiteTeam "ARM"]
[BlackTeam "FID"]
[WhiteClock "0:01:03"]
[BlackClock "0:00:00"]

1. Nf3 {[%clk 0:02:56]}  Nf6 {[%clk 0:02:59]} 2. c4 {[%clk 0:02:56]}  c5 {[%clk 0:02:59]} 3. e3 {[%clk 0:02:55]}  Nc6 {[%clk 0:02:57]} 4. d4 {[%clk 0:02:53]}  cxd4 {[%clk 0:02:57]} 5. exd4 {[%clk 0:02:54]}  d5 {[%clk 0:02:56]} 6. h3 {[%clk 0:02:46]}  dxc4 {[%clk 0:02:52]} 7. Bxc4 {[%clk 0:02:46]}  e6 {[%clk 0:02:51]} 8. Nc3 {[%clk 0:02:46]}  Bd6 {[%clk 0:02:45]} 9. O-O {[%clk 0:02:46]}  O-O {[%clk 0:02:45]} 10. Qe2 {[%clk 0:02:41]}  a6 {[%clk 0:02:38]} 11. Rd1 {[%clk 0:02:41]}  b5 {[%clk 0:02:34]} 12. d5 {[%clk 0:02:33]}  exd5 {[%clk 0:02:19]} 13. Bxd5 {[%clk 0:02:33]}  Nxd5 {[%clk 0:02:18]} 14. Nxd5 {[%clk 0:02:32]}  Be6 {[%clk 0:01:47]} 15. Bg5 {[%clk 0:02:23]}  Qb8 {[%clk 0:01:40]} 16. Rac1 {[%clk 0:02:17]}  Qb7 {[%clk 0:01:36]} 17. Qe4 {[%clk 0:02:09]}  Rfe8 {[%clk 0:00:55]} 18. Rxc6 {[%clk 0:01:55]}  Bxh3 {[%clk 0:00:26]} 19. Qc2 {[%clk 0:01:32]}  Bf5 {[%clk 0:00:26]} 20. Qxf5 {[%clk 0:01:21]}  Qxc6 {[%clk 0:00:26]} 21. Bf6 {[%clk 0:01:18]}  Bf8 {[%clk 0:00:17]} 22. Ng5 {[%clk 0:01:08]}  g6 {[%clk 0:00:17]} 23. Qf3 {[%clk 0:01:06]}  Qc2 {[%clk 0:00:10]} 24. Bc3 {[%clk 0:01:04]}  f5 {[%clk 0:00:00]} 25. Nf6+ {[%clk 0:01:03]} 1-0

[Event "December 12 Late 2023"]
[Site "https://www.chess.com"]
[Date "2023.12.12"]
[Round "3"]
[White "Goltsev, Dmitry"]
[Black "Indjic, Aleksandar"]
[Result "0-1"]
[Board "28"]
[TimeControl "180+1"]
[WhiteFideId "24176710"]
[BlackFideId "911925"]
[WhiteElo "2666"]
[BlackElo "2899"]
[WhiteTeam "RUS"]
[BlackTeam "SRB"]
[WhiteClock "0:00:41"]
[BlackClock "0:01:50"]

1. e4 {[%clk 0:02:57]}  c5 {[%clk 0:02:54]} 2. Nf3 {[%clk 0:02:56]}  a6 {[%clk 0:02:54]} 3. b3 {[%clk 0:02:56]}  e6 {[%clk 0:02:50]} 4. Bb2 {[%clk 0:02:56]}  Nc6 {[%clk 0:02:51]} 5. d4 {[%clk 0:02:56]}  cxd4 {[%clk 0:02:52]} 6. Nxd4 {[%clk 0:02:56]}  Nxd4 {[%clk 0:02:52]} 7. Qxd4 {[%clk 0:02:55]}  Ne7 {[%clk 0:02:52]} 8. Be2 {[%clk 0:02:54]}  Nc6 {[%clk 0:02:52]} 9. Qd3 {[%clk 0:02:53]}  b5 {[%clk 0:02:52]} 10. O-O {[%clk 0:02:53]}  Bb7 {[%clk 0:02:52]} 11. a3 {[%clk 0:02:53]}  f6 {[%clk 0:02:52]} 12. Nd2 {[%clk 0:02:52]}  Bc5 {[%clk 0:02:51]} 13. Nf3 {[%clk 0:02:52]}  Qe7 {[%clk 0:02:50]} 14. Rad1 {[%clk 0:02:51]}  Rd8 {[%clk 0:02:50]} 15. b4 {[%clk 0:02:51]}  Ba7 {[%clk 0:02:49]} 16. c4 {[%clk 0:02:46]}  bxc4 {[%clk 0:02:46]} 17. Qxc4 {[%clk 0:02:46]}  O-O {[%clk 0:02:45]} 18. Rd2 {[%clk 0:02:38]}  Rc8 {[%clk 0:02:44]} 19. Qb3 {[%clk 0:02:31]}  Rc7 {[%clk 0:02:42]} 20. Rfd1 {[%clk 0:02:30]}  f5 {[%clk 0:02:39]} 21. exf5 {[%clk 0:01:59]}  Rxf5 {[%clk 0:02:38]} 22. Bc4 {[%clk 0:01:51]}  d5 {[%clk 0:02:35]} 23. Bd3 {[%clk 0:01:46]}  Rxf3 {[%clk 0:02:35]} 24. gxf3 {[%clk 0:01:40]}  Qh4 {[%clk 0:02:35]} 25. Bf1 {[%clk 0:01:35]}  Rf7 {[%clk 0:02:13]} 26. Re1 {[%clk 0:01:23]}  Qg5+ {[%clk 0:02:07]} 27. Kh1 {[%clk 0:01:05]}  Qxd2 {[%clk 0:02:06]} 28. Rxe6 {[%clk 0:01:06]}  Ne7 {[%clk 0:01:56]} 29. Qa4 {[%clk 0:00:41]}  Qxf2 {[%clk 0:01:50]} 0-1

[Event "December 12 Late 2023"]
[Site "https://www.chess.com"]
[Date "2023.12.12"]
[Round "3"]
[White "Kamsky, Gata"]
[Black "Sivakumar, Shaaketh"]
[Result "1-0"]
[Board "32"]
[TimeControl "180+1"]
[WhiteFideId "2000024"]
[BlackFideId "30940176"]
[WhiteElo "2860"]
[BlackElo "2583"]
[WhiteTeam "USA"]
[BlackTeam "USA"]
[WhiteClock "0:01:07"]
[BlackClock "0:00:19"]

1. e4 {[%clk 0:03:00]}  e6 {[%clk 0:03:00]} 2. d4 {[%clk 0:02:54]}  d5 {[%clk 0:02:57]} 3. Nc3 {[%clk 0:02:50]}  Bb4 {[%clk 0:02:54]} 4. e5 {[%clk 0:02:50]}  Ne7 {[%clk 0:02:54]} 5. a3 {[%clk 0:02:48]}  Bxc3+ {[%clk 0:02:54]} 6. bxc3 {[%clk 0:02:48]}  c5 {[%clk 0:02:55]} 7. Bd3 {[%clk 0:02:39]}  Qa5 {[%clk 0:02:53]} 8. Bd2 {[%clk 0:02:38]}  c4 {[%clk 0:02:53]} 9. Be2 {[%clk 0:02:38]}  Qa4 {[%clk 0:02:54]} 10. Nh3 {[%clk 0:02:37]}  Nbc6 {[%clk 0:02:53]} 11. Nf4 {[%clk 0:02:37]}  Bd7 {[%clk 0:02:54]} 12. Nh5 {[%clk 0:02:37]}  Rg8 {[%clk 0:02:48]} 13. O-O {[%clk 0:02:37]}  O-O-O {[%clk 0:02:47]} 14. Re1 {[%clk 0:02:37]}  Rdf8 {[%clk 0:02:45]} 15. Bg4 {[%clk 0:02:37]}  Nd8 {[%clk 0:02:42]} 16. Bg5 {[%clk 0:02:34]}  Nec6 {[%clk 0:02:37]} 17. Bh3 {[%clk 0:02:27]}  h6 {[%clk 0:02:34]} 18. Bd2 {[%clk 0:02:23]}  Ne7 {[%clk 0:02:23]} 19. Re3 {[%clk 0:02:15]}  f6 {[%clk 0:02:18]} 20. exf6 {[%clk 0:02:12]}  gxf6 {[%clk 0:02:19]} 21. Rf3 {[%clk 0:02:04]}  Rg6 {[%clk 0:02:16]} 22. Rg3 {[%clk 0:02:01]}  Rfg8 {[%clk 0:02:08]} 23. Qb1 {[%clk 0:01:48]}  Ndc6 {[%clk 0:02:00]} 24. Qb2 {[%clk 0:01:43]}  e5 {[%clk 0:01:55]} 25. Bxd7+ {[%clk 0:01:42]}  Kxd7 {[%clk 0:01:56]} 26. Qxb7+ {[%clk 0:01:42]}  Kd6 {[%clk 0:01:55]} 27. dxe5+ {[%clk 0:01:39]}  fxe5 {[%clk 0:01:55]} 28. Qb2 {[%clk 0:01:27]}  Nf5 {[%clk 0:01:49]} 29. Rxg6+ {[%clk 0:01:26]}  Rxg6 {[%clk 0:01:50]} 30. Ng3 {[%clk 0:01:25]}  Nxg3 {[%clk 0:01:46]} 31. hxg3 {[%clk 0:01:24]}  h5 {[%clk 0:01:46]} 32. Rd1 {[%clk 0:01:21]}  Rg8 {[%clk 0:01:42]} 33. Be3 {[%clk 0:01:21]}  Qa5 {[%clk 0:01:17]} 34. Qc1 {[%clk 0:01:11]}  Qxc3 {[%clk 0:01:12]} 35. Bd2 {[%clk 0:01:09]}  Qd4 {[%clk 0:00:42]} 36. Bb4+ {[%clk 0:01:08]}  Nxb4 {[%clk 0:00:42]} 37. Rxd4 {[%clk 0:01:08]}  exd4 {[%clk 0:00:31]} 38. axb4 {[%clk 0:01:07]}  Rb8 {[%clk 0:00:19]} 39. Qf4+ {[%clk 0:01:07]} 1-0